bitfinex/quotes_SOLUSD_20250901
["timestamp","ask_amount","ask_price","bid_price","bid_amount"]
[1756688403461,19.38923579,200.79,200.75,0.03]
[1756688403667,31.79364178,200.76,200.75,0.03]
[1756688404212,32.45364178,200.76,200.75,0.03]
[1756688404668,46.04923579,200.76,200.75,0.03]
[1756688405299,46.04923579,200.76,200.74,0.03]
[1756688405300,13.59559401,200.75,200.74,0.03]
[1756688405458,26.0,200.75,200.74,0.03]
[1756688405885,32.45364178,200.75,200.74,0.03]
[1756688406067,46.04923579,200.75,200.74,0.03]
[1756688406476,46.04923579,200.75,200.73,0.03]
[1756688406660,19.38923579,200.74,200.72,1e-08]
[1756688406860,5.79364178,200.73,200.72,1e-08]
[1756688407082,26.0,200.69,200.68,0.03]
[1756688407405,50.37204509,200.69,200.68,0.03]
[1756688407567,51.03204509,200.69,200.68,0.03]
[1756688407766,0.66,200.73,200.68,0.03]
[1756688407980,50.37130035,200.72,200.68,0.03]
[1756688408164,5.79364178,200.7,200.68,0.03]
[1756688408567,31.79364178,200.69,200.68,0.03]
[1756688409201,26.0,200.69,200.68,0.03]
[1756688410601,5.64203655,200.73,200.68,5.82364178]
[1756688410804,30.98203655,200.73,200.69,6.48364178]
[1756688411104,4.98203655,200.73,200.7,5.79364178]
[1756688411303,26.0,200.69,200.68,0.03]
[1756688411979,46.04923579,200.69,200.66,0.03]
[1756688412181,17.43896362,200.7,200.66,0.72]
[1756688412182,26.0,200.67,200.66,0.72]
[1756688412402,26.0,200.67,200.66,6.51364178]
[1756688412594,26.0,200.69,200.66,6.51364178]
[1756688412790,26.0,200.67,200.66,0.03]
[1756688413383,11.4369477,200.67,200.66,0.03]
[1756688414781,25.03254171,200.67,200.66,0.03]
[1756688415215,26.0,200.68,200.66,0.03]
[1756688415383,13.59559401,200.7,200.66,0.72]
[1756688415579,50.37180836,200.7,200.66,0.03]
[1756688415801,5.79364178,200.69,200.66,0.03]
[1756688416705,31.79364178,200.67,200.66,0.03]
[1756688416881,45.38923579,200.67,200.66,0.03]
[1756688417086,26.0,200.67,200.66,0.72]
[1756688417490,4.98250425,200.71,200.66,6.51364178]
[1756688417798,5.79364178,200.68,200.66,0.03]
[1756688418211,26.0,200.68,200.66,0.03]
[1756688418411,31.79364178,200.68,200.66,0.03]
[1756688418625,31.79364178,200.67,200.66,0.03]
[1756688418808,46.04923579,200.67,200.66,0.03]
[1756688419004,13.59559401,200.66,200.64,0.03]
[1756688419318,19.38923579,200.65,200.64,0.03]
[1756688419520,25.03303843,200.65,200.64,0.03]
[1756688420234,25.03303843,200.65,200.63,0.03]
[1756688420435,26.0,200.61,200.54,5.79364178]
[1756688420636,5.79364178,200.57,200.53,0.69]
[1756688420798,5.79364178,200.56,200.53,0.69]
[1756688421231,26.66,200.58,200.51,0.69]
[1756688421431,26.66,200.58,200.48,0.69]
[1756688421432,26.0,200.52,200.48,0.69]
[1756688421634,30.98710235,200.52,200.48,0.69]
[1756688421920,30.98710235,200.52,200.49,0.69]
[1756688422124,26.0601818,200.57,200.51,5.79364178]
[1756688422125,5.79364178,200.57,200.51,5.79364178]
[1756688422311,26.0,200.59,200.54,5.79364178]
[1756688422509,31.79364178,200.59,200.53,5.79364178]
[1756688422735,5.79364178,200.58,200.53,5.79364178]
[1756688422902,32.45364178,200.58,200.52,5.79364178]
[1756688423501,4.98579049,200.57,200.52,5.79364178]
[1756688423743,32.45364178,200.58,200.53,0.69]
[1756688423944,32.45364178,200.58,200.53,6.48364178]
[1756688424146,26.0,200.58,200.54,0.69]
[1756688424323,10.77903214,200.59,200.54,6.48364178]
[1756688424505,36.77903214,200.59,200.54,0.69]
[1756688425204,37.43903214,200.59,200.54,0.69]
[1756688426612,26.0,200.59,200.53,5.79364178]
[1756688426812,26.0,200.59,200.56,5.79364178]
[1756688427024,30.98529874,200.59,200.55,6.48364178]
[1756688427223,26.0,200.59,200.55,6.48364178]
[1756688427806,5.79364178,200.58,200.53,5.79364178]
[1756688428024,6.45364178,200.58,200.53,6.48364178]
[1756688428331,0.66,200.58,200.54,5.79364178]
[1756688428538,0.66,200.58,200.53,0.69]
[1756688428707,26.0,200.56,200.52,5.79364178]
[1756688428902,5.79364178,200.53,200.48,5.79364178]
[1756688429103,5.79364178,200.54,200.49,0.69]
[1756688429308,26.0,200.52,200.49,6.48364178]
[1756688429610,4.98532179,200.59,200.51,5.79364178]
[1756688429827,0.66,200.59,200.55,5.79364178]
[1756688430005,13.59559401,200.63,200.56,5.79364178]
[1756688430006,0.66,200.61,200.56,5.79364178]
[1756688430211,0.66,200.61,200.57,5.79364178]
[1756688430438,26.0,200.59,200.56,6.48364178]
[1756688430631,26.0,200.59,200.54,5.79364178]
[1756688430936,31.79364178,200.6,200.55,5.79364178]
[1756688431146,31.79364178,200.6,200.55,0.69]
[1756688431147,32.45364178,200.6,200.55,0.69]
[1756688431348,32.45364178,200.6,200.55,6.48364178]
[1756688431846,4.98554192,200.58,200.54,5.79364178]
[1756688432025,5.64535289,200.59,200.55,5.79364178]
[1756688432459,5.64535289,200.59,200.54,0.69]
[1756688432615,11.44899467,200.59,200.54,0.69]
[1756688432814,5.65535289,200.59,200.54,6.48364178]
[1756688433015,5.65535289,200.59,200.55,5.79364178]
[1756688433634,0.67,200.59,200.55,5.79364178]
[1756688433836,26.0,200.6,200.55,0.69]
[1756688434065,26.67,200.6,200.56,5.79364178]
[1756688434243,31.65505058,200.6,200.56,5.79364178]
[1756688434640,26.67,200.6,200.56,5.79364178]
[1756688434944,0.67,200.67,200.59,5.79364178]
[1756688435139,5.79364178,200.64,200.55,4.98625828]
[1756688435323,31.79364178,200.64,200.58,5.79364178]
[1756688435522,31.79364178,200.64,200.56,0.69]
[1756688435523,5.79364178,200.63,200.57,5.79364178]
[1756688435755,5.79364178,200.63,200.56,0.69]
[1756688436050,0.67,200.64,200.56,0.69]
[1756688436051,4.9845479,200.62,200.58,5.79364178]
[1756688436256,0.67,200.62,200.59,5.79364178]
[1756688436446,13.59559401,200.67,200.61,5.79364178]
[1756688436631,6.52364178,200.68,200.63,5.79364178]
[1756688436836,26.0,200.64,200.61,5.79364178]
[1756688437054,5.6534982,200.67,200.63,5.79364178]
[1756688437264,32.46364178,200.66,200.56,0.69]
[1756688437563,5.79364178,200.58,200.52,0.69]
[1756688437781,5.79364178,200.58,200.52,6.48364178]
[1756688437933,4.98579049,200.57,200.52,38.48364178]
[1756688438259,5.79364178,200.55,200.5,5.79364178]
[1756688438463,30.98579049,200.57,200.49,40.62]
[1756688438464,6.46364178,200.54,200.49,0.03]
[1756688438855,4.98429945,200.63,200.5,5.79364178]
[1756688439157,26.67,200.6,200.55,5.79364178]
[1756688439539,11.44794123,200.63,200.58,5.79364178]
[1756688439728,6.46364178,200.62,200.56,5.79364178]
[1756688440145,11.44841919,200.62,200.57,5.79364178]
[1756688440784,6.46364178,200.62,200.57,5.79364178]
[1756688440965,26.0,200.62,200.59,5.79364178]
[1756688441171,6.46364178,200.64,200.58,6.48364178]
[1756688441480,26.67,200.64,200.59,5.79364178]
[1756688441662,0.67,200.64,200.59,5.79364178]
[1756688442265,26.0,200.65,200.61,5.79364178]
[1756688442679,4.98374783,200.66,200.62,6.48364178]
[1756688442877,11.44738961,200.66,200.61,5.79364178]
[1756688443068,11.44738961,200.66,200.61,6.48364178]
[1756688444165,26.0,200.65,200.62,5.79364178]
[1756688444363,26.67,200.65,200.61,5.79364178]
[1756688444562,26.67,200.65,200.6,5.79364178]
[1756688445068,32.46364178,200.65,200.6,6.48364178]
[1756688445862,37.44751146,200.65,200.6,6.48364178]
[1756688446087,31.65386968,200.65,200.6,6.48364178]
[1756688446289,0.73,200.68,200.63,5.79364178]
[1756688446592,26.0,200.66,200.64,5.79364178]
[1756688446759,26.67,200.66,200.62,5.79364178]
[1756688447259,0.06,200.68,200.65,5.79364178]
[1756688447455,0.06,200.68,200.67,5.79364178]
[1756688448104,0.06,200.68,200.67,11.4669477]
[1756688448280,0.06,200.68,200.64,1.996656]
[1756688448484,0.06,200.68,200.65,5.79364178]
[1756688448675,0.06,200.68,200.66,6.48364178]
[1756688449008,0.06,200.68,200.64,0.69]
[1756688449296,0.06,200.68,200.65,6.48364178]
[1756688449902,0.06,200.68,200.67,5.79364178]
[1756688450282,0.06,200.68,200.67,6.48364178]
[1756688450478,0.06,200.68,200.67,0.69]
[1756688450686,0.06,200.68,200.67,6.48364178]
[1756688450874,0.06,200.68,200.67,38.48364178]
[1756688452064,0.06,200.68,200.67,43.4669477]
[1756688452270,0.06,200.68,200.67,83.3469477]
[1756688453570,0.06,200.68,200.63,0.03]
[1756688453765,0.06,200.68,200.67,5.79364178]
[1756688453968,0.06,200.71,200.7,26.0]
[1756688454281,0.06,200.73,200.7,72.17189788]
[1756688454603,0.06,200.73,200.72,5.79364178]
[1756688454815,0.06,200.73,200.72,45.67364178]
[1756688454967,0.06,200.73,200.72,49.37366916]
[1756688455404,0.06,200.73,200.72,43.58002738]
[1756688455607,0.06,200.73,200.72,49.37366916]
[1756688456403,0.06,200.73,200.72,54.35573372]
[1756688456588,0.06,200.73,200.72,86.35573372]
[1756688456798,0.06,200.73,200.72,81.37366916]
[1756688457608,0.06,200.73,200.72,49.37366916]
[1756688457813,0.06,200.73,200.72,3.70002738]
[1756688457993,0.06,200.73,200.72,43.58002738]
[1756688458197,0.73,200.73,200.72,43.58002738]
[1756688458577,0.06,200.73,200.72,49.37366916]
[1756688458783,0.06,200.73,200.72,54.35573372]
[1756688460004,0.06,200.73,200.72,55.04573372]
[1756688460210,18.24204385,200.83,200.72,55.04573372]
[1756688460211,0.73,200.82,200.73,13.59559401]
[1756688460513,0.06,200.82,200.81,5.79364178]
[1756688460693,0.73,200.82,200.81,43.55977901]
[1756688461315,0.06,200.82,200.81,49.35342079]
[1756688462718,0.06,200.82,200.81,54.33325247]
[1756688462896,0.06,200.82,200.81,49.35342079]
[1756688463722,0.78,200.82,200.81,45.65364178]
[1756688463925,0.78,200.82,200.81,49.33993562]
[1756688465315,0.06,200.82,200.81,49.33993562]
[1756688466020,0.06,200.82,200.81,55.0097673]
[1756688466393,0.06,200.82,200.81,54.3197673]
[1756688466586,0.06,200.82,200.81,55.0097673]
[1756688466918,0.06,200.82,200.81,81.33993562]
[1756688467103,0.06,200.82,200.81,87.0097673]
[1756688468480,0.78,200.82,200.81,9.47993562]
[1756688468679,0.06,200.82,200.81,49.35993562]
[1756688470001,26.78,200.82,200.81,39.88]
[1756688470510,31.7595837,200.82,200.81,39.88]
[1756688472196,37.55322548,200.82,200.71,5.77005878]
[1756688472395,0.06,200.82,200.81,5.79364178]
[1756688472696,26.78,200.82,200.81,45.65364178]
[1756688473108,0.06,200.82,200.81,45.65364178]
[1756688473412,0.06,200.82,200.81,49.32779485]
[1756688474622,0.06,200.82,200.81,49.32944513]
[1756688476422,0.06,200.82,200.81,54.99927681]
[1756688477417,0.06,200.84,200.82,13.59559401]
[1756688477585,0.06,200.84,200.83,49.8073787]
[1756688477919,0.06,200.84,200.83,49.99944513]
[1756688478092,0.06,200.84,200.83,49.30944513]
[1756688478638,0.06,200.87,200.85,4.97883993]
[1756688478939,0.06,200.87,200.86,49.30944513]
[1756688479125,0.06,200.87,200.86,49.99944513]
[1756688480616,0.06,200.87,200.86,54.97803718]
[1756688481246,0.06,200.87,200.86,3.67580335]
[1756688481431,0.78,200.87,200.86,43.61580335]
[1756688481624,0.78,200.87,200.86,3.67580335]
[1756688481823,0.78,200.87,200.86,43.63580335]
[1756688482546,32.57364178,200.87,200.86,3.67580335]
[1756688482727,37.55198598,200.87,200.86,39.96]
[1756688482935,31.7583442,200.87,200.86,39.96]
[1756688483253,37.55198598,200.87,200.86,43.63862873]
[1756688484740,26.78,200.87,200.86,43.63862873]
[1756688485122,26.78,200.87,200.86,43.641677]
[1756688485321,31.7583442,200.87,200.86,43.641677]
[1756688485545,37.55198598,200.87,200.86,43.621677]
[1756688485921,37.55198598,200.87,200.86,43.62421081]
[1756688486520,37.55198598,200.87,200.86,43.62609926]
[1756688487424,0.06,200.87,200.86,43.62609926]
[1756688487723,0.06,200.87,200.86,49.41974104]
[1756688489029,37.55198598,200.87,200.86,43.62609926]
[1756688489224,26.06,200.87,200.86,43.62609926]
[1756688489431,0.06,200.87,200.86,49.41974104]
[1756688490121,0.78,200.87,200.86,3.68609926]
[1756688490323,5.7583442,200.87,200.86,43.66609926]
[1756688491126,37.55198598,200.87,200.86,43.64609926]
[1756688491725,37.55198598,200.87,200.86,43.62609926]
[1756688492238,37.55198598,200.87,200.86,3.68609926]
[1756688492437,63.59344049,200.87,200.86,3.6988279]
[1756688492750,13.59559401,200.83,200.79,39.97]
[1756688493164,5.79364178,200.8,200.79,39.97]
[1756688493325,10.77372146,200.8,200.79,39.97]
[1756688493654,11.42372146,200.8,200.79,39.97]
[1756688494636,25.01931547,200.8,200.79,39.97]
[1756688494840,25.01931547,200.8,200.79,0.03]
[1756688495647,39.59559401,200.78,200.77,0.03]
[1756688495835,45.38923579,200.78,200.77,0.03]
[1756688496033,20.03923579,200.78,200.77,0.03]
[1756688496244,26.0,200.75,200.73,33.5]
[1756688496445,26.65,200.75,200.73,33.5]
[1756688496646,5.79364178,200.74,200.73,33.5]
[1756688496819,26.0,200.75,200.73,33.5]
[1756688497027,5.79364178,200.74,200.73,33.5]
[1756688498146,4.98156819,200.74,200.73,33.5]
[1756688498354,0.65,200.8,200.73,34.18]
[1756688498527,0.65,200.8,200.74,5.79364178]
[1756688498861,26.0,200.77,200.74,5.79364178]
[1756688499146,5.79364178,200.75,200.68,6.47364178]
[1756688499360,5.79364178,200.73,200.69,39.92]
[1756688499539,0.65,200.75,200.69,39.92]
[1756688499723,5.79364178,200.75,200.7,6.47364178]
[1756688499927,5.79364178,200.75,200.71,0.68]
[1756688500430,10.77478807,200.76,200.71,6.47364178]
[1756688500733,36.77478807,200.76,200.71,6.47364178]
[1756688501740,31.63114629,200.76,200.71,6.47364178]
[1756688502059,6.44364178,200.75,200.69,45.71364178]
[1756688502434,31.79364178,200.71,200.66,4.91071663]
[1756688502672,6.44364178,200.7,200.67,39.9]
[1756688502956,6.44364178,200.69,200.67,39.9]
[1756688503139,0.65,200.71,200.67,39.9]
[1756688503340,6.44364178,200.7,200.67,39.9]
[1756688503959,10.77645108,200.69,200.67,39.9]
[1756688504158,4.9828093,200.69,200.67,39.9]
[1756688504562,26.0,200.7,200.67,40.58]
[1756688504861,4.98261474,200.7,200.67,39.9]
[1756688505064,11.42625652,200.7,200.67,39.9]
[1756688505439,10.77625652,200.7,200.67,39.9]
[1756688505636,31.79364178,200.71,200.67,40.58]
[1756688505859,31.79364178,200.71,200.67,39.9]
[1756688506338,30.98237103,200.71,200.68,0.68]
[1756688506732,30.98237103,200.71,200.67,39.9]
[1756688506935,30.98237103,200.71,200.67,40.58]
[1756688507240,26.0,200.7,200.67,40.58]
[1756688507884,26.0,200.7,200.67,39.9]
[1756688508041,6.44364178,200.77,200.69,5.79364178]
[1756688508234,5.63007968,200.8,200.73,5.79364178]
[1756688508563,5.63007968,200.8,200.74,45.65364178]
[1756688508564,11.42372146,200.8,200.74,45.65364178]
[1756688508767,37.42372146,200.8,200.75,39.9]
[1756688508944,6.44364178,200.79,200.75,39.9]
[1756688509456,4.98057575,200.78,200.75,39.9]
[1756688509768,26.0,200.8,200.75,39.9]
[1756688510065,5.79364178,200.83,200.77,5.79364178]
[1756688510277,19.38923579,200.83,200.78,5.79364178]
[1756688510445,6.44364178,200.82,200.79,39.9]
[1756688511063,5.79364178,200.84,200.79,45.69364178]
[1756688511243,26.0,200.82,200.79,45.69364178]
[1756688511978,0.75,200.89,200.81,5.79364178]
[1756688512146,26.0,200.84,200.83,5.79364178]
[1756688512351,26.0,200.84,200.83,39.9]
[1756688512571,32.44364178,200.84,200.82,39.9]
[1756688512758,6.44364178,200.83,200.82,39.9]
[1756688513061,32.44364178,200.83,200.82,39.9]
[1756688513269,26.65,200.83,200.82,39.9]
[1756688513574,37.42297753,200.83,200.82,39.9]
[1756688513872,30.97933575,200.83,200.82,39.9]
[1756688514241,26.0,200.83,200.82,39.9]
[1756688514863,4.97886114,200.85,200.82,46.37364178]
[1756688515068,4.97886114,200.85,200.82,39.9]
[1756688515250,10.77250292,200.85,200.82,39.9]
[1756688515773,4.97886114,200.85,200.82,39.9]
[1756688516476,0.06,200.87,200.83,6.47364178]
[1756688516800,0.06,200.87,200.84,0.68]
[1756688517096,0.06,200.87,200.86,5.79364178]
[1756688517258,0.06,200.87,200.86,45.71364178]
[1756688517454,0.06,200.87,200.86,40.6]
[1756688517658,0.06,200.87,200.86,51.37223383]
[1756688520780,0.06,200.87,200.86,64.96782784]
[1756688521102,0.1,200.89,200.86,71.25932882]
[1756688521298,0.1,200.89,200.88,11.58728356]
[1756688521584,0.1,200.89,200.88,56.94318956]
[1756688521883,0.1,200.89,200.88,57.62318956]
[1756688522386,0.06,200.92,200.89,13.59559401]
[1756688522692,0.06,200.92,200.89,20.07923579]
[1756688522873,0.06,200.92,200.89,52.07923579]
[1756688523474,0.06,200.92,200.89,96.91708436]
[1756688524090,0.06,200.92,200.89,83.30149035]
[1756688524477,0.06,200.92,200.89,83.7992752]
[1756688526766,0.06,200.92,200.89,176.09486921]
[1756688526992,0.1,200.94,200.91,19.38923579]
[1756688527306,0.1,200.94,200.93,45.38923579]
[1756688527681,0.1,200.94,200.93,46.07923579]
[1756688527996,0.1,200.94,200.93,51.0560934]
[1756688528181,0.06,200.96,200.94,13.59559401]
[1756688528380,0.06,200.97,200.95,59.72687201]
[1756688528581,0.06,200.99,200.98,39.59559401]
[1756688528798,0.1,201.03,200.99,13.59559401]
[1756688529000,0.1,201.03,201.0,39.84]
[1756688529206,0.1,201.03,201.0,43.02068543]
[1756688529405,0.1,201.03,201.02,5.79364178]
[1756688529577,0.06,201.08,201.02,46.13110471]
[1756688529779,0.72,201.08,201.03,39.84]
[1756688530005,0.72,201.08,201.07,5.79364178]
[1756688530210,0.72,201.08,201.07,45.65364178]
[1756688530510,0.06,201.08,201.07,45.65364178]
[1756688531809,0.06,201.08,201.07,45.63364178]
[1756688532699,0.06,201.08,201.07,45.61364178]
[1756688533808,0.06,201.08,201.07,5.79364178]
[1756688534120,0.06,201.08,201.07,45.61364178]
[1756688535899,0.72,201.08,201.04,1.992776]
[1756688536101,0.66,201.07,201.05,45.61364178]
[1756688536317,5.03329386,201.08,201.06,39.82]
[1756688537013,5.63343629,201.07,201.0,6.48364178]
[1756688537217,5.63343629,201.07,201.05,5.79364178]
[1756688537418,4.97343629,201.07,201.06,39.82]
[1756688537987,5.63343629,201.07,201.06,39.82]
[1756688538406,0.06,201.08,201.06,45.61364178]
[1756688538719,0.06,201.08,201.07,5.79364178]
[1756688539420,0.06,201.08,201.07,6.48364178]
[1756688540413,0.06,201.08,201.07,5.66339235]
[1756688540615,0.06,201.08,201.07,45.61364178]
[1756688541631,0.06,201.08,201.07,39.8]
[1756688541632,0.72,201.08,201.07,39.8]
[1756688541827,0.72,201.08,201.03,0.03]
[1756688541988,0.66,201.07,201.06,5.79364178]
[1756688542194,0.06,201.08,201.06,45.59364178]
[1756688542514,0.06,201.08,201.07,6.48364178]
[1756688542730,0.06,201.08,201.07,11.45703413]
[1756688543890,0.06,201.1,201.07,11.45703413]
[1756688544100,0.06,201.1,201.09,5.79364178]
[1756688544506,0.06,201.1,201.09,11.45653948]
[1756688546513,0.06,201.1,201.09,45.59364178]
[1756688546916,0.06,201.1,201.09,51.25653948]
[1756688547801,0.06,201.1,201.09,83.25653948]
[1756688548014,0.06,201.1,201.09,82.56653948]
[1756688548612,0.06,201.1,201.09,83.25653948]
[1756688550130,0.06,201.1,201.09,43.45653948]
[1756688550427,0.06,201.1,201.09,83.25653948]
[1756688550605,0.06,201.1,201.09,43.45653948]
[1756688550802,0.06,201.1,201.09,37.79364178]
[1756688551123,0.06,201.1,201.09,45.59364178]
[1756688551326,0.06,201.1,201.07,1.992478]
[1756688551509,0.06,201.1,201.09,5.79364178]
[1756688551907,0.78,201.1,201.05,83.67365752]
[1756688552102,0.06,201.1,201.09,5.79364178]
[1756688552302,0.06,201.1,201.09,45.59364178]
[1756688552912,0.06,201.1,201.09,51.26653948]
[1756688553308,0.06,201.1,201.09,53.25881948]
[1756688553507,0.06,201.1,201.09,53.75610925]
[1756688553721,0.06,201.12,201.1,13.59559401]
[1756688553919,0.06,201.12,201.11,65.48011788]
[1756688554230,0.06,201.12,201.11,98.18011788]
[1756688554408,0.06,201.12,201.11,97.68287757]
[1756688554600,0.06,201.12,201.11,102.65528073]
[1756688555226,0.06,201.13,201.12,13.59559401]
[1756688555401,0.06,201.13,201.12,65.66287757]
[1756688556122,0.06,201.13,201.12,25.88287757]
[1756688556325,0.06,201.13,201.12,64.96287757]
[1756688556515,0.06,201.13,201.12,65.66287757]
[1756688556826,0.06,201.13,201.12,70.63503349]
[1756688557197,4.96869814,201.26,201.12,70.63503349]
[1756688557404,0.72,201.24,201.15,39.59559401]
[1756688557703,4.96795667,201.29,201.23,5.79364178]
[1756688557900,0.72,201.26,201.25,5.79364178]
[1756688558106,0.72,201.26,201.25,45.57364178]
[1756688559608,0.72,201.28,201.19,3.93917114]
[1756688559931,0.72,201.28,201.27,5.79364178]
[1756688560107,0.72,201.28,201.27,45.59364178]
[1756688560304,0.72,201.28,201.25,5.79364178]
[1756688560516,0.72,201.27,201.26,39.8]
[1756688560747,0.72,201.27,201.26,45.59364178]
[1756688561108,0.72,201.27,201.26,39.8]
[1756688561312,0.72,201.27,201.26,45.59364178]
[1756688561632,0.72,201.29,201.26,45.59364178]
[1756688561824,0.1,201.31,201.28,5.79364178]
[1756688562022,0.1,201.31,201.29,45.57364178]
[1756688562227,5.06755481,201.31,201.29,39.78]
[1756688562414,0.72,201.3,201.29,39.78]
[1756688562612,0.72,201.3,201.29,45.57364178]
[1756688562939,0.1,201.31,201.29,45.57364178]
[1756688563108,0.1,201.31,201.3,5.79364178]
[1756688565540,0.1,201.31,201.3,10.76135166]
[1756688566040,0.1,201.31,201.3,43.46135166]
[1756688566351,0.1,201.31,201.3,57.05694567]
[1756688567008,0.1,201.31,201.3,51.26330389]
[1756688567323,0.1,201.31,201.3,96.81694567]
[1756688569439,0.1,201.31,201.3,45.55364178]
[1756688569611,0.82,201.31,201.28,4.967234]
[1756688569812,0.82,201.31,201.29,45.55364178]
[1756688570024,0.1,201.31,201.29,39.76]
[1756688570516,0.82,201.31,201.3,39.76]
[1756688571736,0.82,201.31,201.27,5.79364178]
[1756688571913,0.72,201.3,201.28,39.76]
[1756688572123,0.72,201.29,201.28,39.76]
[1756688573147,5.68795667,201.29,201.25,10.76557182]
[1756688573323,5.68795667,201.29,201.24,5.79364178]
[1756688573324,0.72,201.28,201.24,5.79364178]
[1756688573528,0.72,201.27,201.25,39.76]
[1756688573748,0.72,201.26,201.25,39.76]
[1756688574118,0.72,201.26,201.2,41.487957]
[1756688574322,0.72,201.26,201.22,5.79364178]
[1756688574624,0.72,201.28,201.24,5.79364178]
[1756688574936,0.72,201.27,201.25,39.74]
[1756688575130,0.72,201.27,201.25,45.53364178]
[1756688575347,0.1,201.31,201.26,5.79364178]
[1756688575647,0.1,201.31,201.29,5.79364178]
[1756688575836,0.1,201.31,201.3,39.74]
[1756688576435,6.61364178,201.31,201.27,32.0]
[1756688576642,6.51364178,201.3,201.28,39.74]
[1756688576835,5.79364178,201.3,201.29,39.74]
[1756688577435,11.48135166,201.3,201.29,39.74]
[1756688577752,5.68770988,201.3,201.29,39.74]
[1756688577956,11.48135166,201.3,201.29,39.74]
[1756688578761,11.48135166,201.3,201.18,0.7]
[1756688578930,0.72,201.29,201.2,40.71405416]
[1756688579264,0.72,201.28,201.24,5.79364178]
[1756688579552,5.68822434,201.28,201.25,39.74]
[1756688579933,0.72,201.27,201.25,39.74]
[1756688580133,4.3244613,201.26,201.2,40.71405416]
[1756688580353,4.3244613,201.25,201.21,39.74]
[1756688580553,4.3244613,201.25,201.2,44.31851546]
[1756688580554,0.72,201.24,201.2,44.31851546]
[1756688580744,0.72,201.23,201.21,39.74]
[1756688580945,0.72,201.22,201.21,39.74]
[1756688581153,4.3244613,201.22,201.2,35.82]
[1756688581344,5.68993191,201.21,201.2,35.82]
[1756688581549,9.29439321,201.21,201.2,75.56]
[1756688581748,21.71922298,201.21,201.15,0.03]
[1756688581957,5.77350856,201.17,201.16,39.74]
[1756688582258,0.67,201.17,201.16,39.74]
[1756688582562,6.44350856,201.19,201.16,39.74]
[1756688582761,0.67,201.18,201.16,39.74]
[1756688582936,5.77350856,201.2,201.16,39.74]
[1756688583137,5.77350856,201.23,201.18,5.77350856]
[1756688583441,5.77350856,201.23,201.16,39.74]
[1756688583442,0.67,201.23,201.19,45.51350856]
[1756688583651,0.67,201.23,201.2,39.74]
[1756688584354,26.0,201.26,201.2,39.74]
[1756688584355,10.74248582,201.25,201.2,39.74]
[1756688584557,0.67,201.29,201.24,5.77350856]
[1756688584742,0.67,201.29,201.25,45.53350856]
[1756688585341,10.84113884,201.31,201.26,5.77350856]
[1756688585557,0.77,201.31,201.26,5.77350856]
[1756688585766,0.77,201.31,201.27,5.77350856]
[1756688585945,0.1,201.31,201.28,39.76]
[1756688586145,0.1,201.31,201.28,40.47]
[1756688586357,0.1,201.31,201.29,0.71]
[1756688587569,0.1,201.31,201.3,39.76]
[1756688588162,5.73746966,201.31,201.3,39.76]
[1756688588546,0.1,201.31,201.3,39.76]
[1756688588864,0.77,201.31,201.3,39.76]
[1756688589066,11.51105815,201.31,201.3,39.76]
[1756688589255,11.51105815,201.31,201.24,5.77350856]
[1756688589561,5.77350856,201.29,201.25,39.76]
[1756688589752,0.67,201.28,201.26,39.76]
[1756688589938,0.67,201.28,201.27,39.76]
[1756688590137,0.67,201.28,201.21,0.71]
[1756688590138,6.44350856,201.28,201.21,0.71]
[1756688590333,17.48620738,201.31,201.21,0.71]